fUST/lending_fUST_20240508
["ID","MTS","AMOUNT","RATE_DAILY","PERIOD"]
[326540582,1715099451715,-613.21,0.00016438,2]
[326540583,1715099451737,-500.4633863,0.00016438,2]
[326540584,1715099451753,-500.0,0.00016438,2]
[326540585,1715099451764,-500.0,0.00016438,2]
[326540586,1715099451777,-500.0,0.00016438,2]
[326540587,1715099451803,-935.71,0.00016438,2]
[326540588,1715099451825,-878.77,0.00016438,2]
[326540589,1715099451836,-500.0,0.00016438,2]
[326540590,1715099451846,-505.75153175,0.00016438,2]
[326540591,1715099451861,-31507.59,0.00016438,2]
[326540592,1715099451874,-500.0,0.00016438,2]
[326540593,1715099451885,-500.0,0.00016438,2]
[326540594,1715099451899,-500.0,0.00016438,2]
[326540595,1715099451910,-500.0,0.00016438,2]
[326540596,1715099451921,-500.0,0.00016438,2]
[326540597,1715099451945,-500.0,0.00016438,2]
[326540598,1715099451960,-500.0,0.00016438,2]
[326540599,1715099451972,-500.0,0.00016438,2]
[326540600,1715099452002,-500.0,0.00016438,2]
[326540601,1715099452012,-500.0,0.00016438,2]
[326540602,1715099452025,-638.98140544,0.00016438,2]
[326540603,1715099452060,-500.0,0.00016438,2]
[326540604,1715099452072,-500.0,0.00016438,2]
[326540605,1715099452083,-500.0,0.00016438,2]
[326540606,1715099452107,-561.85598086,0.00016438,2]
[326540607,1715099452118,-581.79,0.00016438,2]
[326540608,1715099452131,-500.0,0.00016438,2]
[326540609,1715099452140,-500.0,0.00016438,2]
[326540610,1715099452151,-151.0,0.00016438,2]
[326540611,1715099452181,-151.0,0.00016438,2]
[326540612,1715099452192,-151.0,0.00016438,2]
[326540613,1715099452209,-1083.75,0.00016438,2]
[326540614,1715099452225,-151.0,0.00016438,2]
[326540615,1715099452253,-151.0,0.00016438,2]
[326540616,1715099452264,-151.0,0.00016438,2]
[326540617,1715099452277,-173.601113,0.00016438,2]
[326540618,1715099452299,-318.00406299,0.00016438,2]
[326540619,1715099452337,-500.0,0.00016438,2]
[326540620,1715099452351,-504.20938246,0.00016438,2]
[326540621,1715099452362,-500.0,0.00016438,2]
[326540622,1715099452387,-1266.38,0.00016438,2]
[326540623,1715099452397,-500.0,0.00016438,2]
[326540624,1715099452408,-606.99359501,0.00016438,2]
[326540625,1715099452418,-500.0,0.00016438,2]
[326540626,1715099452429,-500.0,0.00016438,2]
[326540627,1715099452442,-500.0,0.00016438,2]
[326540628,1715099452462,-566.73,0.00016438,2]
[326540629,1715099452497,-566.73,0.00016438,2]
[326540630,1715099452519,-566.73,0.00016438,2]
[326540631,1715099452531,-566.73,0.00016438,2]
[326540632,1715099452542,-566.73,0.00016438,2]
[326540633,1715099452552,-566.73,0.00016438,2]
[326540634,1715099452564,-566.73,0.00016438,2]
[326540635,1715099452576,-566.73,0.00016438,2]
[326540636,1715099452586,-566.73,0.00016438,2]
[326540637,1715099452600,-566.73,0.00016438,2]
[326540638,1715099452612,-566.73,0.00016438,2]
[326540639,1715099452636,-566.73,0.00016438,2]
[326540640,1715099452696,-566.73,0.00016438,2]
[326540641,1715099452708,-566.73,0.00016438,2]
[326540642,1715099452719,-500.0,0.00016438,2]
[326540643,1715099452746,-501.16871996,0.00016438,2]
[326540644,1715099452791,-500.0,0.00016438,2]
[326540645,1715099452812,-500.90436365,0.00016438,2]
[326540646,1715099452831,-1582.96,0.00016438,2]
[326540647,1715099452849,-151.0,0.00016438,2]
[326540648,1715099452863,-1052.62,0.00016438,2]
[326540649,1715099452876,-276.95746894,0.00016438,2]
[326540650,1715099452892,-501.2436431,0.00016438,2]
[326540651,1715099452903,-500.0,0.00016438,2]
[326540652,1715099452913,-4356.84,0.00016438,2]
[326540653,1715099452925,-500.0,0.00016438,2]
[326540654,1715099452937,-500.0,0.00016438,2]
[326540655,1715099452953,-500.0,0.00016438,2]
[326540656,1715099452968,-1558.35,0.00016438,2]
[326540657,1715099452997,-500.0,0.00016438,2]
[326540658,1715099453007,-500.0,0.00016438,2]
[326540659,1715099453019,-503.91244268,0.00016438,2]
[326540660,1715099453032,-506.73868127,0.00016438,2]
[326540661,1715099453043,-5322.15,0.00016438,2]
[326540662,1715099453055,-500.0,0.00016438,2]
[326540663,1715099453073,-500.0,0.00016438,2]
[326540664,1715099453109,-500.0,0.00016438,2]
[326540665,1715099453129,-500.0,0.00016438,2]
[326540666,1715099453149,-509.35719041,0.00016438,2]
[326540667,1715099453159,-523.14530048,0.00016438,2]
[326540668,1715099453173,-500.0,0.00016438,2]
[326540669,1715099453191,-500.0,0.00016438,2]
[326540670,1715099453224,-500.0,0.00016438,2]
[326540671,1715099453237,-8812.66,0.00016438,2]
[326540672,1715099453261,-500.0,0.00016438,2]
[326540673,1715099453272,-522.24976038,0.00016438,2]
[326540674,1715099822630,3956.05028615,0.0002,10]
[326540675,1715099883522,4909.92892707,0.000125,2]
[326540677,1715100117560,14200.0,0.000265,120]
[326540678,1715100117603,21800.0,0.000265,120]
[326540687,1715100360751,769.81891506,0.00014702,2]
[326540899,1715100648150,-310.73037844,0.00015214,2]
[326540914,1715100652685,-126.48762956,0.00015214,2]
[326540916,1715100652704,-162.19860967,0.0001579,2]
[326540918,1715100652715,-243.63519,0.0001589,2]
[326540919,1715100652732,-209.193374,0.0001589,2]
[326540922,1715100652782,-7948.04730527,0.00016022,2]
[326540925,1715100652801,-167.51856,0.00016023,2]
[326540926,1715100652811,-1814.842669,0.00016023,2]
[326540928,1715100652830,-1608.499088,0.00016023,2]
[326540930,1715100652840,-1814.842669,0.00016223,2]
[326540931,1715100652856,-1608.499088,0.00016223,2]
[326540932,1715100652867,-194.28143752,0.00016238,2]
[326540933,1715100652890,-306.0,0.000163,2]
[326540934,1715100652902,-456.97952061,0.00016336,2]
[326540935,1715100652946,-158.45520766,0.00016336,2]
[326540936,1715100652975,-1583.16156104,0.00016336,2]
[326540937,1715100652987,-1796.48142971,0.00016336,2]
[326540938,1715100652998,-413.79090332,0.00016336,2]
[326540939,1715100653009,-1089.03,0.00016337,2]
[326540940,1715100653019,-194.28143751,0.00016338,2]
[326540941,1715100653054,-55555.0,0.00016338,2]
[326540942,1715100653067,-166.04587495,0.00016338,2]
[326540943,1715100653077,-1814.842669,0.00016424,2]
[326540944,1715100653101,-1608.499088,0.00016424,2]
[326540945,1715100653113,-397.26833046,0.00016434,2]
[326540946,1715100653135,-155.14890182,0.00016434,2]
[326540947,1715100653146,-307.60705671,0.00016435,2]
[326540948,1715100653327,-1089.03,0.00016435,2]
[326540949,1715100653365,-785.32231489,0.00016436,2]
[326540950,1715100653383,-706.178087,0.00016436,2]
[326540951,1715100653408,-9350.72011871,0.00016436,2]
[326540952,1715100653428,-49941.06246467,0.00016436,2]
[326540953,1715100653439,-5015.88937994,0.00016437,2]
[326540954,1715100653453,-893.87701251,0.00016437,2]
[326540955,1715100653468,-1089.03,0.00016437,2]
[326540956,1715100653518,-1089.03,0.00016437,2]
[326540957,1715100653546,-1089.03,0.00016437,2]
[326540961,1715100653605,-1089.03,0.00016437,2]
[326540963,1715100653616,-1089.03,0.00016437,2]
[326540965,1715100653640,-1089.03,0.00016437,2]
[326540966,1715100653651,-1089.03,0.00016437,2]
[326540967,1715100653662,-1089.03,0.00016437,2]
[326540968,1715100653677,-1089.03,0.00016437,2]
[326540970,1715100653688,-1089.03,0.00016437,2]
[326540974,1715100653725,-1089.03,0.00016437,2]
[326540977,1715100653765,-5371.49998303,0.00016438,5]
[326540979,1715100653791,-500.0,0.00016438,2]
[326540981,1715100653809,-500.0,0.00016438,2]
[326540982,1715100653846,-500.0,0.00016438,2]
[326540984,1715100653868,-535.75,0.00016438,2]
[326540986,1715100653879,-500.0,0.00016438,2]
[326540989,1715100653893,-500.0,0.00016438,2]
[326540992,1715100653946,-500.0,0.00016438,2]
[326540994,1715100653957,-500.0,0.00016438,2]
[326540996,1715100653968,-517.98493735,0.00016438,2]
[326540998,1715100653982,-300.81980021,0.00016438,2]
[326541001,1715100654014,-500.0,0.00016438,2]
[326541003,1715100654025,-500.0,0.00016438,2]
[326541013,1715100654101,-500.48152128,0.00016438,2]
[326541016,1715100654112,-500.0,0.00016438,2]
[326541020,1715100654132,-500.0,0.00016438,2]
[326541028,1715100654177,-1102.53,0.00016438,2]
[326541031,1715100654216,-504.74427046,0.00016438,2]
[326541033,1715100654228,-500.0,0.00016438,2]
[326541034,1715100654239,-500.0,0.00016438,2]
[326541036,1715100654250,-500.0,0.00016438,2]
[326541038,1715100654260,-500.0,0.00016438,2]
[326541040,1715100654274,-337.20336021,0.00016438,2]
[326541043,1715100654286,-500.0,0.00016438,2]
[326541047,1715100654328,-500.0,0.00016438,2]
[326541048,1715100654342,-500.0,0.00016438,2]
[326541049,1715100654353,-500.0,0.00016438,2]
[326541052,1715100654410,-500.0,0.00016438,2]
[326541055,1715100654466,-500.0,0.00016438,2]
[326541058,1715100654501,-500.0,0.00016438,2]
[326541059,1715100654511,-500.0,0.00016438,2]
[326541060,1715100654524,-500.0,0.00016438,2]
[326541063,1715100654570,-500.0,0.00016438,2]
[326541065,1715100654588,-500.0,0.00016438,2]
[326541066,1715100654599,-500.0,0.00016438,2]
[326541068,1715100654627,-500.0,0.00016438,2]
[326541070,1715100654647,-500.0,0.00016438,2]
[326541074,1715100654709,-500.0,0.00016438,2]
[326541076,1715100654746,-501.17418155,0.00016438,2]
[326541077,1715100654778,-557.01,0.00016438,2]
[326541079,1715100654810,-500.0,0.00016438,2]
[326541081,1715100654853,-500.0,0.00016438,2]
[326541083,1715100654864,-1183.83,0.00016438,2]
[326541085,1715100654875,-500.0,0.00016438,2]
[326541086,1715100654919,-610.14,0.00016438,2]
[326541087,1715100654940,-500.0,0.00016438,2]
[326541088,1715100654951,-500.0,0.00016438,2]
[326541090,1715100654961,-500.0,0.00016438,2]
[326541095,1715100655021,-606.04,0.00016438,2]
[326541096,1715100655034,-500.0,0.00016438,2]
[326541098,1715100655048,-500.0,0.00016438,2]
[326541101,1715100655100,-500.0,0.00016438,2]
[326541103,1715100655112,-500.0,0.00016438,2]
[326541105,1715100655123,-644.41,0.00016438,2]
[326541108,1715100655160,-500.0,0.00016438,2]
[326541111,1715100655189,-500.0,0.00016438,2]
[326541112,1715100655204,-501.18679688,0.00016438,2]
[326541113,1715100655215,-500.0,0.00016438,2]
[326541115,1715100655231,-500.0,0.00016438,2]
[326541116,1715100655247,-500.0,0.00016438,2]
[326541118,1715100655258,-963.08,0.00016438,2]
[326541122,1715100655307,-500.0,0.00016438,2]
[326541123,1715100655318,-500.0,0.00016438,2]
[326541125,1715100655336,-500.0,0.00016438,2]
[326541127,1715100655349,-500.0,0.00016438,2]
[326541129,1715100655360,-2720.33,0.00016438,2]
[326541130,1715100655371,-500.0,0.00016438,2]
[326541131,1715100655388,-500.0,0.00016438,2]
[326541133,1715100655399,-500.0,0.00016438,2]
[326541134,1715100655425,-1202.59,0.00016438,2]
[326541135,1715100655446,-500.0,0.00016438,2]
[326541139,1715100655491,-500.0,0.00016438,2]
[326541141,1715100655507,-245.74763403,0.00016438,2]
[326541143,1715100655528,-500.0,0.00016438,2]
[326541144,1715100655558,-742.41,0.00016438,2]
[326541145,1715100655573,-500.0,0.00016438,2]
[326541147,1715100655585,-500.0,0.00016438,2]
[326541149,1715100655612,-1089.03,0.00016438,2]
[326541151,1715100655643,-500.0,0.00016438,2]
[326541153,1715100655654,-500.0,0.00016438,2]
[326541157,1715100655741,-500.0,0.00016438,2]
[326541160,1715100655759,-503.38822394,0.00016438,2]
[326541162,1715100655784,-500.0,0.00016438,2]
[326541163,1715100655795,-500.0,0.00016438,2]
[326541165,1715100655806,-500.0,0.00016438,2]
[326541168,1715100655837,-501.02950373,0.00016438,2]
[326541169,1715100655849,-766.57,0.00016438,2]
[326541172,1715100655897,-500.0,0.00016438,2]
[326541175,1715100655921,-580.65962318,0.00016438,2]
[326541176,1715100655943,-956.93,0.00016438,2]
[326541179,1715100655992,-500.0,0.00016438,2]
[326541181,1715100656004,-505.29,0.00016438,2]
[326541183,1715100656018,-500.0,0.00016438,2]
[326541185,1715100656029,-426.74748712,0.00016438,2]
[326541187,1715100656059,-500.0,0.00016438,2]
[326541190,1715100656086,-525.09868408,0.00016438,2]
[326541193,1715100656099,-537.76,0.00016438,2]
[326541195,1715100656126,-500.0,0.00016438,2]
[326541198,1715100656206,-500.0,0.00016438,2]
[326541201,1715100656233,-500.0,0.00016438,2]
[326541203,1715100656244,-510.63632301,0.00016438,2]
[326541207,1715100656308,-500.0,0.00016438,2]
[326541208,1715100656320,-500.0,0.00016438,2]
[326541210,1715100656330,-500.0,0.00016438,2]
[326541212,1715100656341,-500.77832962,0.00016438,2]
[326541213,1715100656351,-500.0,0.00016438,2]
[326541214,1715100656366,-500.0,0.00016438,2]
[326541216,1715100656379,-500.0,0.00016438,2]
[326541218,1715100656391,-500.0,0.00016438,2]
[326541222,1715100656436,-324.37856413,0.00016438,2]
[326541224,1715100656449,-500.0,0.00016438,2]
[326541225,1715100656494,-500.0,0.00016438,2]
[326541227,1715100656509,-500.0,0.00016438,2]
[326541229,1715100656533,-503.03479664,0.00016438,2]
[326541230,1715100656544,-1666.67,0.00016438,2]
[326541231,1715100656554,-500.0,0.00016438,2]
[326541233,1715100656577,-500.0,0.00016438,2]
[326541234,1715100656597,-500.0,0.00016438,2]
[326541236,1715100656609,-500.0,0.00016438,2]
[326541238,1715100656619,-500.0,0.00016438,2]
[326541240,1715100656641,-532.71727823,0.00016438,2]
[326541243,1715100656668,-500.0,0.00016438,2]
[326541245,1715100656684,-500.0,0.00016438,2]
[326541249,1715100656714,-500.0,0.00016438,2]
[326541251,1715100656729,-500.0,0.00016438,2]
[326541253,1715100656750,-500.0,0.00016438,2]
[326541255,1715100656766,-500.0,0.00016438,2]
[326541256,1715100656788,-500.0,0.00016438,2]
[326541259,1715100656802,-500.0,0.00016438,2]
[326541262,1715100656877,-500.0,0.00016438,2]
[326541264,1715100656903,-500.0,0.00016438,2]
[326541267,1715100656932,-500.0,0.00016438,2]
[326541268,1715100656948,-500.0,0.00016438,2]
[326541270,1715100656978,-500.0,0.00016438,2]
[326541272,1715100657005,-500.0,0.00016438,2]
[326541274,1715100657018,-500.0,0.00016438,2]
[326541277,1715100657045,-151.0,0.00016438,2]
[326541279,1715100657063,-229.29746,0.00016438,2]
[326541281,1715100657086,-500.0,0.00016438,2]
[326541283,1715100657112,-500.0,0.00016438,2]
[326541284,1715100657128,-500.0,0.00016438,2]
[326541286,1715100657147,-1484.81,0.00016438,2]
[326541288,1715100657166,-291.91991201,0.00016438,2]
[326541290,1715100657180,-500.0,0.00016438,2]
[326541292,1715100657196,-500.0,0.00016438,2]
[326541296,1715100657260,-167.43977245,0.00016438,2]
[326541298,1715100657273,-240.26537581,0.00016438,2]
[326541300,1715100657287,-1839.7,0.00016438,2]
[326541301,1715100657314,-500.0,0.00016438,2]
[326541304,1715100657334,-500.0,0.00016438,2]
[326541306,1715100657382,-500.56592484,0.00016438,2]
[326541309,1715100657401,-500.0,0.00016438,2]
[326541310,1715100657418,-500.0,0.00016438,2]
[326541313,1715100657444,-500.0,0.00016438,2]
[326541314,1715100657458,-501.42953644,0.00016438,2]
[326541317,1715100657486,-500.0,0.00016438,2]
[326541318,1715100657499,-155.15418456,0.00016438,2]
[326541321,1715100657511,-500.0,0.00016438,2]
[326541323,1715100657522,-500.0,0.00016438,2]
[326541325,1715100657542,-500.0,0.00016438,2]
[326541327,1715100657555,-500.0,0.00016438,2]
[326541329,1715100657571,-500.0,0.00016438,2]
[326541332,1715100657590,-503.93163518,0.00016438,2]
[326541334,1715100657621,-500.0,0.00016438,2]
[326541336,1715100657633,-500.0,0.00016438,2]
[326541338,1715100657647,-537.57,0.00016438,2]
[326541340,1715100657665,-500.0,0.00016438,2]
[326541341,1715100657679,-623.62,0.00016438,2]
[326541344,1715100657707,-500.0,0.00016438,2]
[326541345,1715100657724,-500.0,0.00016438,2]
[326541347,1715100657735,-500.0,0.00016438,2]
[326541349,1715100657752,-501.83693781,0.00016438,2]
[326541350,1715100657764,-500.0,0.00016438,2]
[326541353,1715100657785,-500.0,0.00016438,2]
[326541357,1715100657818,-500.0,0.00016438,2]
[326541359,1715100657831,-185.76209642,0.00016438,2]
[326541361,1715100657846,-500.0,0.00016438,2]
[326541363,1715100657864,-500.0,0.00016438,2]
[326541365,1715100657877,-501.94461411,0.00016438,2]
[326541367,1715100657894,-500.0,0.00016438,2]
[326541369,1715100657906,-500.0,0.00016438,2]
[326541370,1715100657918,-500.0,0.00016438,2]
[326541372,1715100657952,-500.0,0.00016438,2]
[326541375,1715100657971,-500.0,0.00016438,2]
[326541376,1715100658011,-500.0,0.00016438,2]
[326541379,1715100658037,-500.0,0.00016438,2]
[326541381,1715100658053,-500.0,0.00016438,2]
[326541383,1715100658067,-500.0,0.00016438,2]
[326541386,1715100658093,-500.0,0.00016438,2]
[326541387,1715100658109,-500.0,0.00016438,2]
[326541388,1715100658121,-500.0,0.00016438,2]
[326541389,1715100658139,-500.0,0.00016438,2]
[326541390,1715100658151,-154.25780173,0.00016438,2]
[326541391,1715100658164,-500.0,0.00016438,2]
[326541393,1715100658177,-500.0,0.00016438,2]
[326541398,1715100658222,-470.37363555,0.00016438,2]
[326541399,1715100658235,-223.91887166,0.00016438,2]
[326541401,1715100658247,-500.0,0.00016438,2]
[326541402,1715100658262,-513.36832474,0.00016438,2]
[326541405,1715100658307,-500.0,0.00016438,2]
[326541409,1715100658352,-500.0,0.00016438,2]
[326541411,1715100658365,-500.0,0.00016438,2]
[326541412,1715100658379,-500.0,0.00016438,2]
[326541414,1715100658394,-500.0,0.00016438,2]
[326541418,1715100658445,-501.12374621,0.00016438,2]
[326541419,1715100658457,-500.0,0.00016438,2]
[326541421,1715100658469,-500.0,0.00016438,2]
[326541423,1715100658482,-500.0,0.00016438,2]
[326541424,1715100658494,-500.0,0.00016438,2]
[326541426,1715100658507,-502.15356797,0.00016438,2]
[326541428,1715100658520,-151.0,0.00016438,2]
[326541432,1715100658582,-159.074915,0.00016438,2]
[326541434,1715100658595,-832.64,0.00016438,2]
[326541436,1715100658622,-500.0,0.00016438,2]
[326541438,1715100658650,-3602.83,0.00016438,2]
[326541440,1715100658663,-500.0,0.00016438,2]
[326541442,1715100658677,-500.0,0.00016438,2]
[326541447,1715100658718,-500.0,0.00016438,2]
[326541450,1715100658747,-246.80304802,0.00016438,2]
[326541454,1715100658785,-500.0,0.00016438,2]
[326541456,1715100658844,-500.0,0.00016438,2]
[326541459,1715100658857,-662.13,0.00016438,2]
[326541461,1715100658870,-500.0,0.00016438,2]
[326541463,1715100658886,-500.0,0.00016438,2]
[326541465,1715100658898,-503.59126416,0.00016438,2]
[326541466,1715100658917,-500.0,0.00016438,2]
[326541467,1715100658928,-500.0,0.00016438,2]
[326541471,1715100658977,-345.75482029,0.00016438,2]
[326541474,1715100659028,-500.0,0.00016438,2]
[326541476,1715100659048,-151.39603211,0.00016438,2]
[326541477,1715100659064,-502.29503644,0.00016438,2]
[326541479,1715100659089,-501.20721887,0.00016438,2]
[326541480,1715100659101,-502.14761802,0.00016438,2]
[326541485,1715100659156,-500.0,0.00016438,2]
[326541487,1715100659169,-501.223399,0.00016438,2]
[326541489,1715100659201,-1700.25,0.00016438,2]
[326541490,1715100659214,-501.07254256,0.00016438,2]
[326541491,1715100659249,-500.0,0.00016438,2]
[326541492,1715100659261,-500.0,0.00016438,2]
[326541493,1715100659305,-500.0,0.00016438,2]
[326541494,1715100659318,-511.74411787,0.00016438,2]
[326541495,1715100659330,-500.0,0.00016438,2]
[326541496,1715100659342,-500.0,0.00016438,2]
[326541497,1715100659357,-2219.36,0.00016438,2]
[326541498,1715100659370,-500.0,0.00016438,2]
[326541499,1715100659381,-500.0,0.00016438,2]
[326541500,1715100659394,-1000.0,0.00016438,2]
[326541501,1715100659406,-500.0,0.00016438,2]
[326541502,1715100659420,-500.0,0.00016438,2]
[326541503,1715100659432,-500.0,0.00016438,2]
[326541504,1715100659457,-500.0,0.00016438,2]
[326541505,1715100659481,-1647.39,0.00016438,2]
[326541508,1715100659538,-500.0,0.00016438,2]
[326541510,1715100659551,-1081.63390419,0.00016438,2]
[326541709,1715100663651,-900.21609581,0.00016438,2]
[326541711,1715100663664,-500.0,0.00016438,2]
[326541712,1715100663676,-151.0,0.00016438,2]
[326541714,1715100663736,-151.0,0.00016438,2]
[326541715,1715100663780,-151.0,0.00016438,2]
[326541716,1715100663790,-151.0,0.00016438,2]
[326541717,1715100663801,-151.0,0.00016438,2]
[326541719,1715100663811,-151.0,0.00016438,2]
[326541721,1715100663822,-500.0,0.00016438,2]
[326541723,1715100663832,-151.0,0.00016438,2]
[326541725,1715100663843,-500.0,0.00016438,2]
[326541726,1715100663866,-755.49,0.00016438,2]
[326541728,1715100663900,-31814.43,0.00016438,2]
[326541730,1715100663912,-642.63111698,0.00016438,2]
[326541731,1715100663928,-291.74570589,0.00016438,2]
[326541733,1715100663942,-454.76452741,0.00016438,2]
[326541736,1715100663960,-500.0,0.00016438,2]
[326541738,1715100663988,-500.0,0.00016438,2]
[326541742,1715100664072,-964.49,0.00016438,2]
[326541745,1715100664098,-230.26226775,0.00016438,2]
[326541747,1715100664111,-500.0,0.00016438,2]
[326541748,1715100664122,-500.0,0.00016438,2]
[326541749,1715100664133,-502.29771139,0.00016438,2]
[326541751,1715100664148,-501.40778053,0.00016438,2]
[326541752,1715100664159,-500.0,0.00016438,2]
[326541754,1715100664172,-500.0,0.00016438,2]
[326541755,1715100664183,-7025.89,0.00016438,2]
[326541757,1715100664232,-511.52425961,0.00016438,2]
[326541758,1715100664243,-500.0,0.00016438,2]
[326541762,1715100664291,-500.0,0.00016438,2]
[326541765,1715100664317,-652.97,0.00016438,2]
[326541769,1715100664354,-501.70339014,0.00016438,2]
[326541772,1715100664383,-824.15,0.00016438,2]
[326541773,1715100664401,-858.25,0.00016438,2]
[326541774,1715100664415,-500.0,0.00016438,2]
[326541776,1715100664425,-500.0,0.00016438,2]
[326541778,1715100664435,-513.39800549,0.00016438,2]
[326541785,1715100664527,-500.0,0.00016438,2]
[326541788,1715100664556,-151.0,0.00016438,2]
[326541790,1715100664578,-151.0,0.00016438,2]
[326541792,1715100664606,-151.0,0.00016438,2]
[326541794,1715100664617,-151.0,0.00016438,2]
[326541796,1715100664628,-151.0,0.00016438,2]
[326541798,1715100664643,-500.0,0.00016438,2]
[326541800,1715100664659,-229.219344,0.00016438,2]
[326541802,1715100664669,-500.0,0.00016438,2]
[326541804,1715100664686,-500.0,0.00016438,2]
[326541805,1715100664698,-501.7767823,0.00016438,2]
[326541806,1715100664737,-500.0,0.00016438,2]
[326541808,1715100664755,-500.0,0.00016438,2]
[326541810,1715100664775,-603.72,0.00016438,2]
[326541811,1715100664786,-500.0,0.00016438,2]
[326541813,1715100664798,-500.0,0.00016438,2]
[326541815,1715100664826,-500.0,0.00016438,2]
[326541817,1715100664845,-500.0,0.00016438,2]
[326541819,1715100664864,-500.0,0.00016438,2]
[326541822,1715100664882,-501.50515852,0.00016438,2]
[326541826,1715100664924,-500.0,0.00016438,2]
[326541827,1715100664935,-500.0,0.00016438,2]
[326541828,1715100664954,-500.0,0.00016438,2]
[326541830,1715100664977,-500.0,0.00016438,2]
[326541831,1715100664991,-1570.3,0.00016438,2]
[326541833,1715100665003,-501.12794737,0.00016438,2]
[326541834,1715100665015,-895.38,0.00016438,2]
[326541835,1715100665026,-500.0,0.00016438,2]
[326541836,1715100665036,-500.0,0.00016438,2]
[326541837,1715100665047,-500.0,0.00016438,2]
[326541840,1715100665069,-282.46506677,0.00016438,2]
[326541842,1715100665080,-500.0,0.00016438,2]
[326541844,1715100665113,-500.0,0.00016438,2]
[326541847,1715100665137,-500.0,0.00016438,2]
[326541849,1715100665150,-5295.85,0.00016438,2]
[326541850,1715100665162,-502.22346431,0.00016438,2]
[326541853,1715100665180,-516.33408637,0.00016438,2]
[326541855,1715100665213,-666.21,0.00016438,2]
[326541857,1715100665229,-500.0,0.00016438,2]
[326541860,1715100665251,-511.91813073,0.00016438,2]
[326541862,1715100665261,-500.0,0.00016438,2]
[326541864,1715100665276,-294.5993744,0.00016438,2]
[326541866,1715100665291,-500.0,0.00016438,2]
[326541869,1715100665339,-500.0,0.00016438,2]
[326541871,1715100665354,-482.91905799,0.00016438,2]
[326541873,1715100665374,-151.0,0.00016438,2]
[326541877,1715100665420,-151.0,0.00016438,2]
[326541878,1715100665433,-502.79378833,0.00016438,2]
[326541879,1715100665454,-151.0,0.00016438,2]
[326541880,1715100665464,-257.10951,0.00016438,2]
[326541883,1715100665507,-9324.81,0.00016438,2]
[326541884,1715100665517,-501.09818053,0.00016438,2]
[326541888,1715100665571,-501.80928791,0.00016438,2]
[326541890,1715100665594,-151.0,0.00016438,2]
[326541891,1715100665612,-500.0,0.00016438,2]
[326541893,1715100665622,-500.0,0.00016438,2]
[326541895,1715100665634,-151.0,0.00016438,2]
[326541896,1715100665645,-4170.79,0.00016438,2]
[326541899,1715100665657,-151.0,0.00016438,2]
[326541901,1715100665678,-506.66688639,0.00016438,2]
[326541903,1715100665692,-500.0,0.00016438,2]
[326541904,1715100665704,-500.0,0.00016438,2]
[326541906,1715100665717,-500.0,0.00016438,2]
[326541909,1715100665735,-151.0,0.00016438,2]
[326541910,1715100665751,-500.0,0.00016438,2]
[326541911,1715100665763,-500.0,0.00016438,2]
[326541913,1715100665780,-500.0,0.00016438,2]